[Event "Late-Titled-Tuesday-Blitz-January-16-2024"]
[Site "Chess.com"]
[Date "2024.01.16"]
[Round "2"]
[White "cristianserban1"]
[Black "finec2"]
[Result "1-0"]
[WhiteElo "2528"]
[BlackElo "2287"]
[TimeControl "180+1"]
[EndTime "14:15:35 PST"]
[Termination "cristianserban1 won by resignation"]

1. Nf3 {[%clk 0:03:00.9]} 1... Nf6 {[%clk 0:02:59.1]} 2. b3 {[%clk 0:03:01.5]}
2... g6 {[%clk 0:02:59.1]} 3. Bb2 {[%clk 0:03:01.9]} 3... Bg7 {[%clk 0:02:59.2]}
4. d4 {[%clk 0:03:01]} 4... O-O {[%clk 0:02:59]} 5. e3 {[%clk 0:03:01.6]} 5...
b6 {[%clk 0:02:57.3]} 6. Be2 {[%clk 0:03:01.5]} 6... Bb7 {[%clk 0:02:57.4]} 7.
O-O {[%clk 0:03:02.2]} 7... d6 {[%clk 0:02:57.6]} 8. c4 {[%clk 0:03:02.4]} 8...
e6 {[%clk 0:02:56]} 9. Nc3 {[%clk 0:03:00.8]} 9... a6 {[%clk 0:02:54.1]} 10. Qc2
{[%clk 0:03:00.5]} 10... c5 {[%clk 0:02:51.2]} 11. Rfd1 {[%clk 0:02:59]} 11...
Qe7 {[%clk 0:02:49]} 12. e4 {[%clk 0:02:58.8]} 12... Nc6 {[%clk 0:02:36.2]} 13.
d5 {[%clk 0:02:53.2]} 13... exd5 {[%clk 0:02:36.1]} 14. exd5 {[%clk 0:02:53.3]}
14... Nb8 {[%clk 0:02:22.4]} 15. Bd3 {[%clk 0:02:50.4]} 15... Nbd7 {[%clk
0:02:20.9]} 16. Re1 {[%clk 0:02:49.7]} 16... Qd8 {[%clk 0:02:20.7]} 17. h3
{[%clk 0:02:48.4]} 17... Re8 {[%clk 0:02:18.5]} 18. Nd2 {[%clk 0:02:11.4]} 18...
Qc7 {[%clk 0:01:58.4]} 19. Nce4 {[%clk 0:02:05.9]} 19... Nxe4 {[%clk 0:01:58.2]}
20. Nxe4 {[%clk 0:02:06.8]} 20... Ne5 {[%clk 0:01:49.6]} 21. f4 {[%clk
0:01:50.8]} 21... Nxd3 {[%clk 0:01:47.8]} 22. Bxg7 {[%clk 0:01:50.5]} 22... Nxe1
{[%clk 0:01:32.4]} 23. Rxe1 {[%clk 0:01:51.4]} 23... Rxe4 {[%clk 0:01:26.2]} 24.
Rxe4 {[%clk 0:01:39.5]} 24... Kxg7 {[%clk 0:01:25.5]} 25. f5 {[%clk 0:01:39.7]}
25... Bc8 {[%clk 0:01:02.4]} 26. f6+ {[%clk 0:01:39.4]} 26... Kf8 {[%clk
0:01:00.4]} 27. Qd2 {[%clk 0:01:36]} 27... Be6 {[%clk 0:00:48.3]} 28. Qh6+
{[%clk 0:01:31]} 28... Ke8 {[%clk 0:00:47.6]} 29. dxe6 {[%clk 0:01:30.5]} 29...
fxe6 {[%clk 0:00:47.3]} 30. Rxe6+ {[%clk 0:01:29.5]} 1-0

[Event "Late-Titled-Tuesday-Blitz-January-16-2024"]
[Site "Chess.com"]
[Date "2024.01.16"]
[Round "2"]
[White "N18player"]
[Black "A-Fier"]
[Result "0-1"]
[WhiteElo "2528"]
[BlackElo "2766"]
[TimeControl "180+1"]
[EndTime "14:15:37 PST"]
[Termination "A-Fier won by resignation"]

1. Nf3 {[%clk 0:03:00.9]} 1... b6 {[%clk 0:02:59.5]} 2. c4 {[%clk 0:03:01]} 2...
Bb7 {[%clk 0:03:00.4]} 3. Nc3 {[%clk 0:03:00.7]} 3... c5 {[%clk 0:02:59.7]} 4.
e3 {[%clk 0:03:00.4]} 4... g6 {[%clk 0:02:59.1]} 5. d4 {[%clk 0:02:58.9]} 5...
d6 {[%clk 0:02:59.2]} 6. d5 {[%clk 0:02:57.2]} 6... Bg7 {[%clk 0:02:59.5]} 7.
Bd3 {[%clk 0:02:47.9]} 7... Nd7 {[%clk 0:02:59.9]} 8. O-O {[%clk 0:02:24.5]}
8... Bxc3 {[%clk 0:02:59.3]} 9. bxc3 {[%clk 0:02:23.9]} 9... f5 {[%clk
0:03:00.2]} 10. Ng5 {[%clk 0:02:19]} 10... Nf8 {[%clk 0:03:00.3]} 11. e4 {[%clk
0:02:18.4]} 11... fxe4 {[%clk 0:03:00.3]} 12. Nxe4 {[%clk 0:02:13]} 12... Kd7
{[%clk 0:02:59]} 13. Re1 {[%clk 0:02:09.7]} 13... Kc7 {[%clk 0:02:59.3]} 14. Bf4
{[%clk 0:02:09.4]} 14... h6 {[%clk 0:02:57.2]} 15. h4 {[%clk 0:02:03.4]} 15...
Bc8 {[%clk 0:02:57.1]} 16. Qf3 {[%clk 0:02:00.1]} 16... Bf5 {[%clk 0:02:56]} 17.
g4 {[%clk 0:01:58.2]} 17... Bxe4 {[%clk 0:02:55.4]} 18. Rxe4 {[%clk 0:01:57.1]}
18... Nf6 {[%clk 0:02:55.1]} 19. Re3 {[%clk 0:01:54.2]} 19... h5 {[%clk
0:02:54.8]} 20. g5 {[%clk 0:01:51.9]} 20... Ng4 {[%clk 0:02:55.2]} 21. Re2
{[%clk 0:01:49.1]} 21... Nd7 {[%clk 0:02:55.6]} 22. Rae1 {[%clk 0:01:18.1]}
22... Nde5 {[%clk 0:02:52.4]} 23. Qg3 {[%clk 0:01:17.9]} 23... Rf8 {[%clk
0:02:48.8]} 24. Bxg6 {[%clk 0:00:46.5]} 24... Nxg6 {[%clk 0:02:46.3]} 25. Rxe7+
{[%clk 0:00:43.6]} 25... Nxe7 {[%clk 0:02:45.9]} 26. Bxd6+ {[%clk 0:00:43.7]}
26... Kb7 {[%clk 0:02:39.7]} 27. Bxe7 {[%clk 0:00:20.6]} 27... Qd7 {[%clk
0:02:38.8]} 28. Bxf8 {[%clk 0:00:19.7]} 28... Rxf8 {[%clk 0:02:39.7]} 29. f3
{[%clk 0:00:17.2]} 29... Nf6 {[%clk 0:02:31.9]} 30. gxf6 {[%clk 0:00:17]} 30...
Rxf6 {[%clk 0:02:32.8]} 31. Kf2 {[%clk 0:00:15.9]} 31... Qf5 {[%clk 0:02:30.9]}
32. d6 {[%clk 0:00:10]} 32... Ka6 {[%clk 0:02:27.3]} 33. Re2 {[%clk 0:00:06.2]}
33... Qd3 {[%clk 0:02:27.2]} 34. Kg2 {[%clk 0:00:04.6]} 34... Rxd6 {[%clk
0:02:27]} 35. Kh2 {[%clk 0:00:04.1]} 35... Qxe2+ {[%clk 0:02:27]} 36. Kh3 {[%clk
0:00:04.4]} 36... Rd1 {[%clk 0:02:26.6]} 0-1

[Event "Late-Titled-Tuesday-Blitz-January-16-2024"]
[Site "Chess.com"]
[Date "2024.01.16"]
[Round "2"]
[White "babero_gordo"]
[Black "eCztery"]
[Result "1/2-1/2"]
[WhiteElo "1973"]
[BlackElo "2426"]
[TimeControl "180+1"]
[EndTime "14:15:39 PST"]
[Termination "Game drawn by repetition"]

1. e4 {[%clk 0:02:57.6]} 1... d5 {[%clk 0:02:55.2]} 2. exd5 {[%clk 0:02:56.5]}
2... Qxd5 {[%clk 0:02:56.1]} 3. Nc3 {[%clk 0:02:56.2]} 3... Qa5 {[%clk
0:02:55.4]} 4. Bc4 {[%clk 0:02:56.1]} 4... Nf6 {[%clk 0:02:55.1]} 5. d3 {[%clk
0:02:55]} 5... e5 {[%clk 0:02:51.1]} 6. Bd2 {[%clk 0:02:54.5]} 6... Qb6 {[%clk
0:02:47.5]} 7. Qe2 {[%clk 0:02:50.7]} 7... Nc6 {[%clk 0:02:44.5]} 8. h3 {[%clk
0:02:25.2]} 8... Nd4 {[%clk 0:02:36.3]} 9. Qxe5+ {[%clk 0:02:19.6]} 9... Be7
{[%clk 0:02:36.3]} 10. O-O-O {[%clk 0:02:10.5]} 10... Be6 {[%clk 0:02:20.5]} 11.
Nb5 {[%clk 0:01:55.1]} 11... Nxb5 {[%clk 0:01:57.7]} 12. Qxb5+ {[%clk 0:01:55]}
12... Qxb5 {[%clk 0:01:54.2]} 13. Bxb5+ {[%clk 0:01:55.9]} 13... c6 {[%clk
0:01:53.5]} 14. Bc4 {[%clk 0:01:56]} 14... Bxc4 {[%clk 0:01:51.9]} 15. dxc4
{[%clk 0:01:56.9]} 15... O-O-O {[%clk 0:01:47.1]} 16. Nf3 {[%clk 0:01:53]} 16...
Ne4 {[%clk 0:01:43.4]} 17. Be3 {[%clk 0:01:51.3]} 17... Bc5 {[%clk 0:01:30.2]}
18. Bxc5 {[%clk 0:01:44]} 18... Nxc5 {[%clk 0:01:31.1]} 19. Ne5 {[%clk
0:01:42.2]} 19... Rhe8 {[%clk 0:00:54.2]} 20. Nxf7 {[%clk 0:01:33.3]} 20...
Rxd1+ {[%clk 0:00:51.3]} 21. Rxd1 {[%clk 0:01:32]} 21... Re2 {[%clk 0:00:49]}
22. Rd2 {[%clk 0:01:13.5]} 22... Re1+ {[%clk 0:00:48.8]} 23. Rd1 {[%clk
0:01:13.5]} 23... Re2 {[%clk 0:00:49.7]} 24. Rd2 {[%clk 0:01:10.7]} 24... Re1+
{[%clk 0:00:49.1]} 25. Rd1 {[%clk 0:01:11]} 25... Re2 {[%clk 0:00:47.3]} 1/2-1/2

[Event "Late-Titled-Tuesday-Blitz-January-16-2024"]
[Site "Chess.com"]
[Date "2024.01.16"]
[Round "2"]
[White "Cheer_Down"]
[Black "miraitrunks"]
[Result "1-0"]
[WhiteElo "2460"]
[BlackElo "2088"]
[TimeControl "180+1"]
[EndTime "14:15:42 PST"]
[Termination "Cheer_Down won by resignation"]

1. d4 {[%clk 0:03:00.9]} 1... d5 {[%clk 0:02:51.9]} 2. c4 {[%clk 0:03:00.5]}
2... Bf5 {[%clk 0:02:51.4]} 3. cxd5 {[%clk 0:02:58.9]} 3... Bxb1 {[%clk
0:02:50.8]} 4. Qa4+ {[%clk 0:02:58.9]} 4... c6 {[%clk 0:02:51.1]} 5. dxc6 {[%clk
0:02:59]} 5... Nxc6 {[%clk 0:02:52]} 6. Rxb1 {[%clk 0:02:57.5]} 6... Qxd4 {[%clk
0:02:52.5]} 7. Qxd4 {[%clk 0:02:55.3]} 7... Nxd4 {[%clk 0:02:53.4]} 8. e3 {[%clk
0:02:55]} 8... Nc2+ {[%clk 0:02:53.1]} 9. Kd1 {[%clk 0:02:52.1]} 9... Nb4 {[%clk
0:02:54]} 10. Bb5+ {[%clk 0:02:50.9]} 10... Nc6 {[%clk 0:02:54.2]} 11. Bxc6+
{[%clk 0:02:51.3]} 11... bxc6 {[%clk 0:02:55.1]} 12. Nf3 {[%clk 0:02:44.5]}
12... O-O-O+ {[%clk 0:02:56]} 13. Kc2 {[%clk 0:02:42.8]} 13... f6 {[%clk
0:02:50.9]} 14. Nd4 {[%clk 0:02:42.5]} 14... Rd6 {[%clk 0:02:43.3]} 15. b3
{[%clk 0:02:36.2]} 15... e5 {[%clk 0:02:43.1]} 16. Nf5 {[%clk 0:02:30.9]} 16...
Rd5 {[%clk 0:02:43.2]} 17. e4 {[%clk 0:02:29.2]} 17... Rc5+ {[%clk 0:02:40.5]}
18. Kb2 {[%clk 0:02:27.2]} 18... Ra5 {[%clk 0:02:35.6]} 19. Be3 {[%clk
0:02:21.8]} 19... Ba3+ {[%clk 0:02:34.4]} 20. Kc2 {[%clk 0:02:21.7]} 20... g6
{[%clk 0:02:33.1]} 21. Ng3 {[%clk 0:02:21]} 21... Ne7 {[%clk 0:02:31.6]} 22.
Rhd1 {[%clk 0:02:20]} 22... Rd8 {[%clk 0:02:27]} 23. Rxd8+ {[%clk 0:02:18.3]}
23... Kxd8 {[%clk 0:02:27.9]} 24. Rd1+ {[%clk 0:02:18.1]} 24... Kc7 {[%clk
0:02:28.2]} 25. Ne2 {[%clk 0:02:18.1]} 25... Bb4 {[%clk 0:02:23.7]} 26. a4
{[%clk 0:02:16.7]} 26... c5 {[%clk 0:02:20.2]} 27. Kd3 {[%clk 0:02:12]} 27...
Nc6 {[%clk 0:02:19.7]} 28. Kc4 {[%clk 0:02:11.2]} 28... Nd4 {[%clk 0:02:03.9]}
29. Bxd4 {[%clk 0:02:06.6]} 29... exd4 {[%clk 0:02:04.8]} 30. Nc1 {[%clk
0:02:05.1]} 30... Bc3 {[%clk 0:01:51.9]} 31. Nd3 {[%clk 0:02:03.5]} 31... Kd6
{[%clk 0:01:52]} 32. f4 {[%clk 0:02:01.1]} 32... Ra6 {[%clk 0:01:48.8]} 33. Nxc5
{[%clk 0:01:46.7]} 33... Rc6 {[%clk 0:01:48.3]} 34. b4 {[%clk 0:01:37]} 34... a5
{[%clk 0:01:46.2]} 35. e5+ {[%clk 0:01:36.5]} 35... fxe5 {[%clk 0:01:43.1]} 36.
fxe5+ {[%clk 0:01:36.8]} 36... Kxe5 {[%clk 0:01:43.5]} 37. Kb5 {[%clk
0:01:37.4]} 37... Rc8 {[%clk 0:01:34.6]} 38. bxa5 {[%clk 0:01:30]} 38... Kd5
{[%clk 0:01:34.8]} 39. Nb7 {[%clk 0:01:26]} 39... Ke4 {[%clk 0:01:26.1]} 40. a6
{[%clk 0:01:25.5]} 40... d3 {[%clk 0:01:24.7]} 41. Nd6+ {[%clk 0:01:25.5]} 41...
Ke3 {[%clk 0:01:21.8]} 42. Nxc8 {[%clk 0:01:22.1]} 1-0

[Event "Late-Titled-Tuesday-Blitz-January-16-2024"]
[Site "Chess.com"]
[Date "2024.01.16"]
[Round "2"]
[White "Actuary44"]
[Black "tarno17"]
[Result "1-0"]
[WhiteElo "2493"]
[BlackElo "2169"]
[TimeControl "180+1"]
[EndTime "14:15:57 PST"]
[Termination "Actuary44 won on time"]

1. e4 {[%clk 0:03:00.9]} 1... c5 {[%clk 0:02:48.8]} 2. d4 {[%clk 0:03:01.5]}
2... cxd4 {[%clk 0:02:45]} 3. c3 {[%clk 0:03:02.1]} 3... d5 {[%clk 0:02:39.6]}
4. exd5 {[%clk 0:03:01.9]} 4... Qxd5 {[%clk 0:02:37.5]} 5. cxd4 {[%clk
0:03:02.8]} 5... e6 {[%clk 0:02:35.4]} 6. Nf3 {[%clk 0:03:03.2]} 6... Nf6 {[%clk
0:02:33.2]} 7. Nc3 {[%clk 0:03:03.6]} 7... Qd6 {[%clk 0:02:24.5]} 8. Bd3 {[%clk
0:03:04]} 8... a6 {[%clk 0:01:58.2]} 9. O-O {[%clk 0:03:04.9]} 9... Be7 {[%clk
0:01:55.6]} 10. Bg5 {[%clk 0:03:04.9]} 10... O-O {[%clk 0:01:43]} 11. Rc1 {[%clk
0:03:05.4]} 11... Nc6 {[%clk 0:01:40.1]} 12. Bb1 {[%clk 0:03:04.9]} 12... h6
{[%clk 0:01:19.1]} 13. Bh4 {[%clk 0:03:04.5]} 13... b5 {[%clk 0:01:09.9]} 14. a3
{[%clk 0:02:59.9]} 14... Bb7 {[%clk 0:01:09.1]} 15. Qd3 {[%clk 0:02:59.1]} 15...
g6 {[%clk 0:00:47.2]} 16. Bg3 {[%clk 0:02:59.2]} 16... Qd8 {[%clk 0:00:38.2]}
17. Rfd1 {[%clk 0:02:59.4]} 17... Qb6 {[%clk 0:00:31]} 18. h3 {[%clk 0:02:59.4]}
18... Rad8 {[%clk 0:00:30.2]} 19. Qe3 {[%clk 0:02:59.3]} 19... Na5 {[%clk
0:00:20.9]} 20. Qxh6 {[%clk 0:02:57.9]} 20... Bxf3 {[%clk 0:00:10.2]} 21. gxf3
{[%clk 0:02:58.1]} 21... Nc4 {[%clk 0:00:10.7]} 22. Be5 {[%clk 0:02:38.6]} 22...
Nxe5 {[%clk 0:00:04.8]} 23. dxe5 {[%clk 0:02:39.5]} 23... Rxd1+ {[%clk
0:00:02.6]} 24. Rxd1 {[%clk 0:02:40.4]} 24... Nh7 {[%clk 0:00:02.8]} 25. Rd7
{[%clk 0:02:31.6]} 25... Bg5 {[%clk 0:00:02.9]} 26. Rd6 {[%clk 0:01:42]} 1-0

[Event "Late-Titled-Tuesday-Blitz-January-16-2024"]
[Site "Chess.com"]
[Date "2024.01.16"]
[Round "2"]
[White "DraningWaterHi"]
[Black "Rdeux42"]
[Result "1-0"]
[WhiteElo "2219"]
[BlackElo "2489"]
[TimeControl "180+1"]
[EndTime "14:16:09 PST"]
[Termination "DraningWaterHi won on time"]

1. d4 {[%clk 0:03:00.9]} 1... Nf6 {[%clk 0:02:58.5]} 2. c4 {[%clk 0:02:58.8]}
2... g6 {[%clk 0:02:58.1]} 3. g3 {[%clk 0:02:58.3]} 3... Bg7 {[%clk 0:02:57.6]}
4. Bg2 {[%clk 0:02:57.7]} 4... O-O {[%clk 0:02:57.5]} 5. Nc3 {[%clk 0:02:56.5]}
5... d6 {[%clk 0:02:51.4]} 6. Nf3 {[%clk 0:02:55.3]} 6... Nc6 {[%clk 0:02:47.8]}
7. O-O {[%clk 0:02:52]} 7... Rb8 {[%clk 0:02:45.2]} 8. b3 {[%clk 0:02:49.8]}
8... Bf5 {[%clk 0:02:41.1]} 9. Nh4 {[%clk 0:02:49.2]} 9... Bd7 {[%clk
0:02:37.6]} 10. Bb2 {[%clk 0:02:47.9]} 10... e5 {[%clk 0:02:28.9]} 11. d5 {[%clk
0:02:44.8]} 11... Ne7 {[%clk 0:02:28.2]} 12. e4 {[%clk 0:02:44.5]} 12... h6
{[%clk 0:02:24.4]} 13. Nf3 {[%clk 0:02:43.4]} 13... Nh7 {[%clk 0:02:09.6]} 14.
Ne1 {[%clk 0:02:37.9]} 14... f5 {[%clk 0:02:07.1]} 15. Nd3 {[%clk 0:02:38.5]}
15... fxe4 {[%clk 0:01:49.6]} 16. Nxe4 {[%clk 0:02:36.2]} 16... Nf5 {[%clk
0:01:47.5]} 17. c5 {[%clk 0:02:36.1]} 17... Qe7 {[%clk 0:01:39.5]} 18. cxd6
{[%clk 0:02:34.4]} 18... cxd6 {[%clk 0:01:40.4]} 19. Qd2 {[%clk 0:02:31.3]}
19... Nf6 {[%clk 0:01:24.4]} 20. Nxf6+ {[%clk 0:02:26.1]} 20... Bxf6 {[%clk
0:01:12.4]} 21. Be4 {[%clk 0:02:25.7]} 21... Bg5 {[%clk 0:01:04.5]} 22. Qe2
{[%clk 0:02:17.2]} 22... Nd4 {[%clk 0:00:47.2]} 23. Bxd4 {[%clk 0:02:14.3]}
23... exd4 {[%clk 0:00:48.1]} 24. f4 {[%clk 0:02:14.3]} 24... Rbe8 {[%clk
0:00:39.1]} 25. Rae1 {[%clk 0:02:12.3]} 25... Bf5 {[%clk 0:00:34.8]} 26. Bxf5
{[%clk 0:02:09.4]} 26... Qxe2 {[%clk 0:00:33.9]} 27. Rxe2 {[%clk 0:02:09.2]}
27... Rxe2 {[%clk 0:00:34.3]} 28. Be6+ {[%clk 0:02:09.5]} 28... Rxe6 {[%clk
0:00:19.1]} 29. dxe6 {[%clk 0:02:09.5]} 29... Bf6 {[%clk 0:00:19.3]} 30. Re1
{[%clk 0:02:08.3]} 30... Re8 {[%clk 0:00:18.6]} 31. g4 {[%clk 0:02:06.9]} 31...
Kf8 {[%clk 0:00:15.8]} 32. f5 {[%clk 0:02:06.4]} 32... gxf5 {[%clk 0:00:13]} 33.
gxf5 {[%clk 0:02:07.3]} 33... Ke7 {[%clk 0:00:13.6]} 34. Nf4 {[%clk 0:02:07.1]}
34... Be5 {[%clk 0:00:06.5]} 35. Nd5+ {[%clk 0:02:05.8]} 35... Kd8 {[%clk
0:00:06]} 36. Kf2 {[%clk 0:02:05.2]} 36... Rg8 {[%clk 0:00:05.6]} 37. Rg1 {[%clk
0:02:04]} 37... Rg5 {[%clk 0:00:02.4]} 38. Rxg5 {[%clk 0:02:03.4]} 38... hxg5
{[%clk 0:00:03.3]} 39. h3 {[%clk 0:02:03.4]} 39... a6 {[%clk 0:00:02.5]} 40. f6
{[%clk 0:02:02.7]} 40... Ke8 {[%clk 0:00:01.2]} 41. f7+ {[%clk 0:02:00.8]} 1-0

[Event "Late-Titled-Tuesday-Blitz-January-16-2024"]
[Site "Chess.com"]
[Date "2024.01.16"]
[Round "2"]
[White "Mackster23"]
[Black "Yaacovn"]
[Result "0-1"]
[WhiteElo "2560"]
[BlackElo "2895"]
[TimeControl "180+1"]
[EndTime "14:16:10 PST"]
[Termination "Yaacovn won on time"]

1. e4 {[%clk 0:03:00.9]} 1... c6 {[%clk 0:02:55.6]} 2. d4 {[%clk 0:03:00.5]}
2... d5 {[%clk 0:02:54.8]} 3. Nd2 {[%clk 0:03:00.1]} 3... dxe4 {[%clk
0:02:51.1]} 4. Nxe4 {[%clk 0:03:01]} 4... Nf6 {[%clk 0:02:50.7]} 5. Nxf6+ {[%clk
0:03:01.7]} 5... gxf6 {[%clk 0:02:50.3]} 6. c3 {[%clk 0:03:02.6]} 6... Qd5
{[%clk 0:02:50]} 7. h3 {[%clk 0:02:44.1]} 7... Bf5 {[%clk 0:02:43.7]} 8. Nf3
{[%clk 0:02:42.7]} 8... Nd7 {[%clk 0:02:43.6]} 9. g3 {[%clk 0:02:19.5]} 9...
O-O-O {[%clk 0:02:35.6]} 10. Bg2 {[%clk 0:02:19.8]} 10... Be4 {[%clk 0:02:33]}
11. O-O {[%clk 0:02:19.3]} 11... Ne5 {[%clk 0:02:28.2]} 12. Ne1 {[%clk 0:01:34]}
12... Bxg2 {[%clk 0:02:24.4]} 13. Nxg2 {[%clk 0:01:34.9]} 13... Nf3+ {[%clk
0:02:12.3]} 14. Kh1 {[%clk 0:01:35]} 14... e5 {[%clk 0:02:03.1]} 15. Be3 {[%clk
0:01:16.4]} 15... e4 {[%clk 0:01:58.5]} 16. Nf4 {[%clk 0:01:08.3]} 16... Qf5
{[%clk 0:01:50.5]} 17. Qa4 {[%clk 0:01:01.7]} 17... Bd6 {[%clk 0:01:48]} 18. g4
{[%clk 0:00:32.9]} 18... Qd7 {[%clk 0:01:46.4]} 19. Qxa7 {[%clk 0:00:32.8]}
19... h5 {[%clk 0:01:45.5]} 20. Qa8+ {[%clk 0:00:09.1]} 20... Kc7 {[%clk
0:01:41.8]} 21. Qa5+ {[%clk 0:00:08.8]} 21... Kc8 {[%clk 0:01:39.1]} 22. Qf5
{[%clk 0:00:07.7]} 22... hxg4 {[%clk 0:01:37.2]} 23. Qxd7+ {[%clk 0:00:07.4]}
23... Kxd7 {[%clk 0:01:37]} 24. Kg2 {[%clk 0:00:02.8]} 24... gxh3+ {[%clk
0:01:34.3]} 25. Kh1 {[%clk 0:00:01.3]} 25... Rdg8 {[%clk 0:01:33.9]} 26. Ne2
{[%clk 0:00:01.5]} 26... h2 {[%clk 0:01:32.6]} 27. Bf4 {[%clk 0:00:01.9]} 27...
Rg1+ {[%clk 0:01:31.7]} 0-1

[Event "Late-Titled-Tuesday-Blitz-January-16-2024"]
[Site "Chess.com"]
[Date "2024.01.16"]
[Round "2"]
[White "FontVella8"]
[Black "Grindaveci"]
[Result "1-0"]
[WhiteElo "2745"]
[BlackElo "2471"]
[TimeControl "180+1"]
[EndTime "14:16:11 PST"]
[Termination "FontVella8 won by resignation"]

1. Nf3 {[%clk 0:03:00.9]} 1... d5 {[%clk 0:02:59.9]} 2. b3 {[%clk 0:03:00.4]}
2... Nf6 {[%clk 0:02:59.6]} 3. Bb2 {[%clk 0:03:01]} 3... Bf5 {[%clk 0:02:59.5]}
4. g3 {[%clk 0:03:01]} 4... e6 {[%clk 0:02:59.9]} 5. Bg2 {[%clk 0:03:01.7]} 5...
c5 {[%clk 0:02:57.5]} 6. O-O {[%clk 0:03:01.5]} 6... Nc6 {[%clk 0:02:58.1]} 7.
d3 {[%clk 0:02:59]} 7... h6 {[%clk 0:02:57.5]} 8. Nbd2 {[%clk 0:02:59.3]} 8...
Be7 {[%clk 0:02:54.6]} 9. Ne5 {[%clk 0:02:57.9]} 9... Nxe5 {[%clk 0:02:50.3]}
10. Bxe5 {[%clk 0:02:58]} 10... O-O {[%clk 0:02:50.8]} 11. e4 {[%clk 0:02:57.7]}
11... Bg6 {[%clk 0:02:48.1]} 12. h3 {[%clk 0:02:53.6]} 12... Qb6 {[%clk
0:02:45.6]} 13. Qe2 {[%clk 0:02:47]} 13... Rfd8 {[%clk 0:02:38.7]} 14. f4 {[%clk
0:02:43.6]} 14... dxe4 {[%clk 0:02:29.9]} 15. dxe4 {[%clk 0:02:41.7]} 15... c4+
{[%clk 0:02:16.1]} 16. Kh2 {[%clk 0:02:39.2]} 16... cxb3 {[%clk 0:02:10.5]} 17.
axb3 {[%clk 0:02:38.7]} 17... Qc6 {[%clk 0:02:07.3]} 18. f5 {[%clk 0:02:26.5]}
18... Bh7 {[%clk 0:01:58.4]} 19. Nc4 {[%clk 0:02:21.2]} 19... a6 {[%clk
0:01:43.2]} 20. Bxf6 {[%clk 0:02:14]} 20... gxf6 {[%clk 0:01:38.4]} 21. e5
{[%clk 0:02:11.8]} 21... Qc7 {[%clk 0:01:15.7]} 22. fxe6 {[%clk 0:02:05.9]}
22... b5 {[%clk 0:00:52.8]} 23. exf6 {[%clk 0:01:52.6]} 23... bxc4 {[%clk
0:00:41]} 24. Qg4+ {[%clk 0:01:52.4]} 24... Bg6 {[%clk 0:00:39.5]} 25. exf7+
{[%clk 0:01:52.2]} 25... Kh7 {[%clk 0:00:34.1]} 26. fxe7 {[%clk 0:01:39.5]}
26... Qxe7 {[%clk 0:00:35]} 27. Bxa8 {[%clk 0:01:33.9]} 27... Rxa8 {[%clk
0:00:35.9]} 28. Rxa6 {[%clk 0:01:26]} 28... Bxf7 {[%clk 0:00:20.1]} 29. Rxa8
{[%clk 0:01:19.9]} 1-0

[Event "Late-Titled-Tuesday-Blitz-January-16-2024"]
[Site "Chess.com"]
[Date "2024.01.16"]
[Round "2"]
[White "SipkeErnst"]
[Black "AkatsukiLogHorizon"]
[Result "1-0"]
[WhiteElo "2678"]
[BlackElo "2282"]
[TimeControl "180+1"]
[EndTime "14:16:18 PST"]
[Termination "SipkeErnst won by resignation"]

1. d4 {[%clk 0:03:00.9]} 1... Nf6 {[%clk 0:02:59.7]} 2. c4 {[%clk 0:03:00.9]}
2... e6 {[%clk 0:02:57.9]} 3. Nf3 {[%clk 0:02:59.3]} 3... Bb4+ {[%clk
0:02:56.6]} 4. Bd2 {[%clk 0:02:58.8]} 4... Bxd2+ {[%clk 0:02:55.4]} 5. Qxd2
{[%clk 0:02:58.7]} 5... b6 {[%clk 0:02:54.3]} 6. Nc3 {[%clk 0:02:57.8]} 6... Bb7
{[%clk 0:02:54]} 7. e3 {[%clk 0:02:57.9]} 7... O-O {[%clk 0:02:52.7]} 8. Bd3
{[%clk 0:02:55.4]} 8... d6 {[%clk 0:02:43]} 9. O-O {[%clk 0:02:51.3]} 9... Nbd7
{[%clk 0:02:43]} 10. Rfd1 {[%clk 0:02:32]} 10... Qe7 {[%clk 0:02:41.2]} 11. e4
{[%clk 0:02:16.2]} 11... e5 {[%clk 0:02:39.7]} 12. d5 {[%clk 0:02:16]} 12... a5
{[%clk 0:02:36.3]} 13. Bc2 {[%clk 0:02:15]} 13... Nc5 {[%clk 0:02:34.8]} 14. Qg5
{[%clk 0:01:50.4]} 14... g6 {[%clk 0:02:08.4]} 15. b3 {[%clk 0:01:47.7]} 15...
Rfe8 {[%clk 0:02:05.1]} 16. a3 {[%clk 0:01:46.3]} 16... Nfd7 {[%clk 0:01:56.3]}
17. Qxe7 {[%clk 0:01:38.8]} 17... Rxe7 {[%clk 0:01:56]} 18. b4 {[%clk
0:01:39.3]} 18... Na6 {[%clk 0:01:37.5]} 19. Rab1 {[%clk 0:01:35.8]} 19... Nab8
{[%clk 0:01:24.7]} 20. Ba4 {[%clk 0:01:25.1]} 20... Nf6 {[%clk 0:01:06.1]} 21.
Nd2 {[%clk 0:01:17.9]} 21... Nbd7 {[%clk 0:01:05.1]} 22. Bc6 {[%clk 0:01:10.4]}
22... Bxc6 {[%clk 0:01:00.4]} 23. dxc6 {[%clk 0:01:11.3]} 23... Nf8 {[%clk
0:00:57.7]} 24. Nd5 {[%clk 0:01:10.6]} 24... Nxd5 {[%clk 0:00:56.5]} 25. exd5
{[%clk 0:01:00.9]} 25... f5 {[%clk 0:00:54.8]} 26. c5 {[%clk 0:01:00.9]} 26...
axb4 {[%clk 0:00:45.2]} 27. cxd6 {[%clk 0:00:59.8]} 27... cxd6 {[%clk
0:00:45.1]} 28. axb4 {[%clk 0:00:56.5]} 28... Rea7 {[%clk 0:00:41.2]} 29. Nc4
{[%clk 0:00:55.9]} 1-0